Cogmind - Beta 17.1 @@@ ROGUE MODE // 2026.08.26 @ 13:53:04 Player: Fedop Result: Destroyed by Y-54 Guardian with Flak Gun Performance ------------- Evolutions (4) 2000 Regions Visited (5) 1000 Robots Destroyed (68) 340 Value Destroyed (1882) 1882 Prototype IDs (28) 560 Alien Tech Used (0) 0 Bonus (251) 251 TOTAL SCORE: 6033 Bonus ------- Registered with UFD 300 Friendly Fire -49 Cogmind --------- Core Integrity 0/850 Matter 151/300 Energy 66/150 System Corruption 10% Temperature Warning (302) Movement Core (200) Ox3 Location -6/Factory Parts ------- > --- POWER (2) -------- Micro Nuclear Core > --- PROPULSION (4) --- Gravmag Array > --- UTILITY (6) ------ Experimental Signal Interpreter Seismic Detector Target Analyzer Hacking Suite > --- WEAPON (3) ------- Companion Sword > --- INVENTORY (5) ---- Cooled Impulse Thruster Scrap Suit Improved Medium Armor Plating Peak State ------------ > --- POWER ------------ Improved Ion Engine Heavy Deuterium Engine > --- PROPULSION ------- Light Treads Improved Medium Treads Compact Wheel Compact Wheel > --- UTILITY ---------- Humpback Improved Targeting Computer Improved Targeting Computer Improved Medium Armor Plating Focal Shield > --- WEAPON ----------- Heavy Ion Cannon Gauss Rifle Companion Sword > --- INVENTORY -------- Armored Treads Improved Medium Treads Scrap Suit Scrap Suit Scrap Suit Large Storage Unit Energy Well High-capacity Matter Pod Gravity Neutralizer Improved Trap Scanner Experimental Signal Interpreter Advanced Terrain Scanner Seismic Detector Advanced Targeting Computer Advanced Melee Analysis Suite Light Armor Plating Improved Medium Armor Plating Improved Medium Armor Plating Thermal Shield Plasma Rifle Subdweller Shrapnel Launcher CPS Tube CPS Tube CPS Tube Shrapnel Trap [Rating: 54] Favorites ----------- Power Ion Engine Engine Ion Engine Power Core Light Nuclear Core Propulsion Light Treads Treads Light Treads Wheel Compact Wheel Hover Unit Gravmag Array Flight Unit Cooled Impulse Thruster Utility Large Storage Unit Device Seismic Detector Storage Large Storage Unit Processor Signal Interpreter Hackware Hacking Suite Protection Light Armor Plating Weapon Light Cannon Energy Gun Small Laser Energy Cannon Beam Cannon Ballistic Gun Assault Rifle Ballistic Cannon Light Cannon Launcher Subdweller Shrapnel Launcher Special Weapon Mining Laser Slashing Weapon Companion Sword Build | -11 -10 -10 -10 -9 -6 ------- Run | Yrd Mat Min Sub Scr Fac Slots Evolved 8 | . . . . . 8 Power 1 | . . . . . 1 Propulsion 2 | . . . . . 2 Utility 4 | . . . . . 4 Weapon 1 | . . . . . 1 Parts Attached 72 | 7 8 2 6 11 38 Power 7 | . 1 . 1 1 4 Engine 5 | . 1 . 1 1 2 Core 2 | . . . . . 2 Reactor . | . . . . . . Propulsion 18 | 2 . . 1 4 11 Treads 6 | 2 . . 1 1 2 Leg . | . . . . . . Wheel 7 | . . . . 3 4 Hover 1 | . . . . . 1 Flight 4 | . . . . . 4 Utility 31 | 3 3 1 1 4 19 Device 13 | 2 . 1 . 2 8 Storage 4 | 1 1 . . 1 1 Processor 7 | . 1 . . 1 5 Hackware 1 | . . . . . 1 Protection 6 | . 1 . 1 . 4 Artifact . | . . . . . . Weapon 16 | 2 4 1 3 2 4 Energy Gun 3 | 1 . . 1 . 1 Energy Cannon 2 | . . 1 . 1 . Ballistic Gun 4 | 1 1 . 1 . 1 Ballistic Cannon 2 | . 1 . . . 1 Launcher 2 | . 1 . . . 1 Special Weapon 1 | . 1 . . . . Impact Weapon . | . . . . . . Slashing Weapon 2 | . . . 1 1 . Piercing Weapon . | . . . . . . Special Melee Weapon . | . . . . . . Unidentified Prototypes 6 | . . . . 1 5 Corrupted Parts 1 | . . . . . 1 System Corruption 2 | . . . . . 2 Parts Lost 23 | . . . 2 . 21 Power 2 | . . . . . 2 Propulsion 10 | . . . 1 . 9 Utility 9 | . . . 1 . 8 Weapon 2 | . . . . . 2 Highest Loss Streak 6 | . . . 1 . 6 To Critical Strikes . | . . . . . . Average Backups 14 | 2 10 14 14 14 19 Power . | 1 . . . . . Propulsion 2 | . . 2 2 2 1 Utility 8 | . 6 8 7 7 13 Weapon 2 | 1 2 3 4 3 1 Tool/Special . | . . . . . . Unused Backups 24 | . 4 2 2 3 13 Power 2 | . 2 . . . . Propulsion . | . . . . . . Utility 17 | . 2 2 2 2 9 Weapon 2 | . . . . 1 1 Tool/Special 3 | . . . . . 3 Average Slot Usage (%) 81 | . 98 100 100 58 77 Engine 10 | . 13 14 14 7 5 Treads 20 | . 27 28 28 16 5 Wheel 6 | . . . . 11 16 Device 7 | . 5 5 11 7 8 Storage 12 | . 13 14 14 12 5 Processor 5 | . 7 8 . 1 6 Protection 1 | . . . 2 . 7 Energy Cannon 3 | . . 10 9 . 4 Ballistic Gun 4 | . 13 3 3 . 1 Ballistic Cannon 6 | . 11 14 10 . 2 Peak Build Rating 54 | 8 8 9 11 16 54 Average Rating 13 | 5 7 8 9 10 40 On Entrance 8 | . 6 8 8 11 15 Avg Prop Armor Cover (%) 9 | . . . . 7 10 Naked Turns 1 | . . . . . 1 Heaviest Build 245 | 8 32 32 34 207 245 Greatest Support 60 | 40 40 40 40 40 60 Greatest Overweight (x) 20 | . 9 . . 20 18 Average Overweight (x) 1 | . . . . 1 3 Largest Inventory Capacity 35 | 8 15 15 15 35 35 Average Capacity 18 | 5 13 15 15 20 32 Most Carried 32 | 5 15 15 15 32 32 Average Carried 15 | 3 10 14 14 16 23 Final Capacity 35 | 8 15 15 15 35 5 Final Carried 32 | 5 15 14 15 32 4 Scrap Suit Usage (%) 1 | . . . . . 3 Parts Cannibalized 1 | . . . . . 1 Class Distribution -------------------- 71% | Mutant 20% | Hauler-Mutant 4% | Hauler-Tank Dominant Class ---------------- Mutant | -10/Materials Mutant | -10/Mines Mutant | -10/Subcaves Mutant | -9/Scraptown Hauler-Mutant | -6/Factory Resources | -11 -10 -10 -10 -9 -6 ----------- Run | Yrd Mat Min Sub Scr Fac Matter Collected 2697 | 139 942 163 26 630 797 Remotely . | . . . . . . Salvage Created 1869 | 107 675 190 179 . 718 Parts 115 | 8 46 4 10 . 47 Haulers Intercepted 2 | . 2 . . . . Recyclers Shooed 3 | 1 2 . . . . Parts Field Recycled . | . . . . . . Retrieved Matter . | . . . . . . Parts Self-Destructed 4 | . . . 4 . . Prevented . | . . . . . . Parts Restored . | . . . . . . Kills | -11 -10 -10 -10 -9 -6 ------- Run | Yrd Mat Min Sub Scr Fac Combat Hostiles Destroyed 42 | . 18 2 5 . 17 Melee 3 | . . . . . 3 Guns 5 | . 4 . . . 1 Cannons 16 | . 4 2 5 . 5 AOE 17 | . 10 . . . 7 Classes Destroyed 13 | 2 7 . 1 . 3 Worker 5 | . 2 1 . . 2 Builder 7 | . 2 . . . 5 Tunneler 3 | 2 . 1 . . . Hauler 2 | . 2 . . . . Recycler 4 | 1 1 1 . . 1 Operator 2 | . 1 . . . 1 Watcher 3 | . 2 . . . 1 Swarmer 12 | . 6 . . . 6 Grunt 16 | . 12 2 . . 2 Sentry 1 | . . . . . 1 Hunter 4 | . . . . . 4 Programmer 4 | . . . . . 4 Subdweller 5 | . . . 5 . . Best Kill Streak 14 | 2 14 2 2 . 11 Combat Bots Only 10 | . 10 2 2 . 6 Max Kills in Single Turn 4 | 1 3 1 1 . 4 Gunslinging . | . . . . . . Exploded 2 | . 2 . . . 1 Melee 1 | . . . . . 1 Uniques/NPCs Destroyed . | . . . . . . Combat | -11 -10 -10 -10 -9 -6 -------- Run | Yrd Mat Min Sub Scr Fac Hostile Shots Fired 462 | . 75 4 34 . 349 Missed 141 | . 26 2 8 . 105 Hits 321 | . 49 2 26 . 244 Melee 1 | . . . . . 1 Projectile 320 | . 49 2 26 . 243 AOE 1 | . . . . . 1 Critical Strikes 4 | . . . . . 4 Damage Taken 4456 | . 502 23 603 . 3328 Core 923 | . 45 . 28 . 850 Absorbed by Shields 84 | . . . . . 84 Redirected to Shielding 50 | . . . . . 50 Ignored by Resistances 328 | . . . . . 328 Regen/Repaired (Parts) 464 | . 134 . . 320 10 Core Remaining (%) 85 | 100 . . . 70 . Volleys Fired 140 | 11 65 7 24 . 33 Largest 3 | 2 2 2 2 . 3 Hottest 185 | 60 100 90 90 . 185 Shots Fired 265 | 22 121 16 46 . 60 Gun 114 | 22 77 2 4 . 9 Cannon 121 | . 26 14 42 . 39 Launcher 28 | . 16 . . . 12 Special 2 | . 2 . . . . Kinetic 152 | 11 87 10 25 . 19 Thermal 97 | 11 18 6 21 . 41 Explosive 16 | . 16 . . . . Electromagnetic . | . . . . . . Robot Hit Streak 16 | 5 9 5 13 . 16 Robot Miss Streak 4 | 2 4 2 3 . 3 Penetration Max . | . . . . . . Secondary Targets 1 | . 1 . . . . Max Gunslinging Chain 1 | . 1 . . . . Shots Hit Robots 172 | 16 62 9 28 . 57 Core Hits 113 | 6 44 5 12 . 46 Critical Kills 1 | . . . . . 1 Critical Parts Destroyed 1 | 1 . . . . . Critical Strikes 4 | 1 . . . . 3 Meltdown 1 | . . . . . 1 Destroy 1 | 1 . . . . . Melee Attacks 62 | . . . 17 . 45 Impact . | . . . . . . Slashing 62 | . . . 17 . 45 Piercing . | . . . . . . Sneak Attacks . | . . . . . . Combat Hostiles . | . . . . . . Follow-up Attacks 1 | . . . . . 1 Damage Inflicted 5870 | 154 1511 153 521 . 3531 Guns 822 | 154 409 21 64 . 174 Cannons 1663 | . 310 117 457 . 779 Explosions 2777 | . 792 . . . 1985 Melee 593 | . . . . . 593 Ramming 15 | . . 15 . . . Kinetic 2543 | 55 640 86 279 . 1483 Thermal 1260 | 99 79 52 242 . 788 Explosive 1459 | . 792 . . . 667 Electromagnetic . | . . . . . . Impact . | . . . . . . Slashing 593 | . . . . . 593 Piercing . | . . . . . . Highest Corruption 10 | . 4 4 4 4 10 Average Corruption 4 | . 3 4 4 4 5 Corruption Purged . | . . . . . . Corruption Blocked . | . . . . . . Effects 160 | . 25 35 16 61 23 Message Errors 39 | . 6 7 5 17 4 Matter Fused 37 | . 5 11 4 13 4 Heat Flow Errors 19 | . 2 5 2 9 1 Energy Discharges 20 | . 3 4 2 7 4 Parts Fused 2 | . 1 . . 1 . Data Loss (minor) 25 | . 6 3 1 10 5 Data Loss (major) 10 | . 2 2 . 3 3 Misfires 5 | . . 2 2 . 1 Alerts 2 | . . 1 . 1 . Misdirections 1 | . . . . . 1 Overload Shots . | . . . . . . Overflow Damage 198 | . . . . . 198 Projectiles 21 | . . . . . 21 Explosions 156 | . . . . . 156 Melee 21 | . . . . . 21 Knockbacks 5 | . 3 . 2 . . Impact . | . . . . . . Kinetic 5 | . 3 . 2 . . Secondary . | . . . . . . Self-Inflicted Damage 254 | . . . . . 254 Shots 6 | . . . . . 6 Rammed 3 | . . 3 . . . Targets Rammed 3 | . . 3 . . . Kicked . | . . . . . . Crushed . | . . . . . . Highest Temperature 319 | 20 255 264 144 274 319 Average Temperature 77 | 8 55 87 69 110 93 Received Heat Transfer 496 | . 198 12 135 . 151 Siege Activations . | . . . . . . Martial Activations . | . . . . . . Shielding Activations . | . . . . . . Robots Disrupted . | . . . . . . Combat Hostiles . | . . . . . . Robots Corrupted . | . . . . . . Combat Hostiles . | . . . . . . Parts Fried . | . . . . . . Impact Corruptions . | . . . . . . Robots Melted 1 | . . . . . 1 Combat Hostiles 1 | . . . . . 1 Parts Melted 6 | . 1 1 1 . 3 Heat Transferred 2217 | 225 175 111 518 . 1188 Parts Sabotaged 3 | . . . . . 3 Parts Stolen . | . . . . . . Parts Stripped . | . . . . . . Power Chain Reactions . | . . . . . . Alert | -11 -10 -10 -10 -9 -6 ------- Run | Yrd Mat Min Sub Scr Fac Maximum Alert Level 1 | . 1 . . . 1 Low Security (%) 86 | 100 90 100 . . 61 Level 1 13 | . 9 . . . 38 Level 2 . | . . . . . . Level 3 . | . . . . . . Level 4 . | . . . . . . Level 5 . | . . . . . . High Security . | . . . . . . Max Security . | . . . . . . Peak Influence 328 | 10 282 55 . . 328 Initial 10 | . . 10 . . . Average 68 | . 95 2 . . 125 Influence Increases 1460 | 15 619 98 . . 728 Destroy 0b10 Robot/C 740 | . 360 40 . . 340 Destroy 0b10 Robot/NC 130 | 15 50 15 . . 50 Destroy Leader 180 | . 78 10 . . 92 Allied During Kill 3 | . . 3 . . . Successful Hack 36 | . 32 . . . 4 Disable Machine 165 | . 60 30 . . 75 Destroy Structure 116 | . 39 . . . 77 Lose Combat Pursuer 90 | . . . . . 90 Influence Decreases 1206 | 15 590 127 . . 474 Entered New Map 19 | . . 19 . . . Time Decay 1006 | 15 590 88 . . 313 Lost Part 161 | . . . . . 161 Lost Ally 20 | . . 20 . . . Squads Dispatched 11 | . 4 . . . 7 Investigation 5 | . 4 . . . 1 Extermination 2 | . . . . . 2 Reinforcement 1 | . . . . . 1 Assault . | . . . . . . Garrison 3 | . . . . . 3 Intercept . | . . . . . . Searches Triggered . | . . . . . . Construction Impeded 1 | . . . . . 1 Haulers Reinforced . | . . . . . . Active Scanning Responses . | . . . . . . Cargo Convoy Interrupts 1 | . . . . . 1 Stealth | -11 -10 -10 -10 -9 -6 --------- Run | Yrd Mat Min Sub Scr Fac Distress Signals 7 | . 5 . . . 2 Communications Jammed . | . . . . . . Distress Signals . | . . . . . . Times Spotted 75 | . 27 2 7 . 39 Peak Tracking Total 12 | . 5 2 2 . 12 Tactical Retreats 3 | . . . . . 3 Traps | -11 -10 -10 -10 -9 -6 ------- Run | Yrd Mat Min Sub Scr Fac Traps Triggered 5 | . 5 . . . . Indirectly . | . . . . . . Trap Hack Attempts . | . . . . . . Triggered . | . . . . . . Disarmed . | . . . . . . Reprogrammed . | . . . . . . Reused . | . . . . . . Traps Extracted . | . . . . . . Installed . | . . . . . . Triggered . | . . . . . . Most Traps Carried 1 | . . . 1 1 1 Machines | -11 -10 -10 -10 -9 -6 ---------- Run | Yrd Mat Min Sub Scr Fac Machines Disabled 12 | . 5 2 . . 5 Max in Single Turn 2 | . 1 1 . . 2 Machines Repaired . | . . . . . . Machines Dismantled . | . . . . . . Machines Sabotaged . | . . . . . . Overloaded Fab Kills . | . . . . . . Hacking | -11 -10 -10 -10 -9 -6 --------- Run | Yrd Mat Min Sub Scr Fac Machines Accessed 26 | . 11 . . 7 8 Terminals 12 | . 8 . . . 4 Fabricators . | . . . . . . Repair Stations 2 | . 1 . . . 1 Recycling Units 4 | . 2 . . . 2 Scanalyzers . | . . . . . . Garrison Access 1 | . . . . . 1 Total Hacks 96 | . 35 . . 42 19 Successful 66 | . 18 . . 42 6 Failed 30 | . 17 . . . 13 Catastrophic 3 | . 1 . . . 2 Database Lockouts . | . . . . . . Manual 37 | . 26 . . . 11 Terminals 38 | . 26 . . . 12 Fabricators . | . . . . . . Repair Stations 3 | . 2 . . . 1 Recycling Units 10 | . 7 . . . 3 Scanalyzers . | . . . . . . Garrison Access 3 | . . . . . 3 Terminal Hacks 53 | . 7 . . 42 4 Record 41 | . . . . 40 1 Robot Schematic 4 | . 4 . . . . Prototype ID Bank 1 | . 1 . . . . Open Door 1 | . . . . 1 . Branch Access Points 1 | . . . . . 1 Terminal Index 1 | . 1 . . . . Recycling Unit Index 1 | . . . . . 1 Investigation Status 1 | . . . . . 1 Registered Components 1 | . 1 . . . . Proto ID Catalog 1 | . . . . 1 . Fabricator Hacks . | . . . . . . Repair Station Hacks 2 | . 2 . . . . Scan Component 1 | . 1 . . . . Repair 1 | . 1 . . . . Recycling Unit Hacks 4 | . 4 . . . . Process 1 | . 1 . . . . Report Inventory 1 | . 1 . . . . Retrieve Matter 2 | . 2 . . . . Scanalyzer . | . . . . . . Garrison Access Hacks . | . . . . . . Unauthorized Hacks 7 | . 5 . . . 2 Terminals 5 | . 3 . . . 2 Assimilate 1 | . 1 . . . . Botnet 4 | . 2 . . . 2 Fabricators . | . . . . . . Repair Stations . | . . . . . . Recycling Units 2 | . 2 . . . . Reject 1 | . 1 . . . . Mask 1 | . 1 . . . . Scanalyzers . | . . . . . . Garrison Access . | . . . . . . Data Cores Recovered 1 | . . . . . 1 Used . | . . . . . . Hacking Detections 17 | . 10 . . . 7 Full Trace Events 4 | . 3 . . . 1 Feedback Events . | . . . . . . Feedback Blocked . | . . . . . . Robot Schematics Acquired 4 | . 4 . . . . Robots Built . | . . . . . . Authchips . | . . . . . . Time . | . . . . . . Total Robot Build Rating . | . . . . . . Part Schematics Acquired . | . . . . . . Parts Built . | . . . . . . Authchips . | . . . . . . Time . | . . . . . . Total Part Build Rating . | . . . . . . Part Studies Acquired . | . . . . . . Parts Repaired 1 | . 1 . . . . Time 26 | . 26 . . . . Parts Recycled . | . . . . . . Recycled Matter 46 | . 46 . . . . Retrieved Matter 46 | . 46 . . . . Retrieved Components . | . . . . . . Parts Scanalyzed . | . . . . . . Part Schematics Acquired . | . . . . . . Parts Damaged . | . . . . . . Bothacking | -11 -10 -10 -10 -9 -6 ------------ Run | Yrd Mat Min Sub Scr Fac Used RIF Installer . | . . . . . . Robots Hacked . | . . . . . . Non-combat . | . . . . . . Combat . | . . . . . . Robot Hacks Applied . | . . . . . . Relay Couplers Released . | . . . . . . Fabnet Peak Effective % . | . . . . . . Robots Rewired . | . . . . . . Allies Hacked . | . . . . . . Hacks Repelled . | . . . . . . Allies | -11 -10 -10 -10 -9 -6 -------- Run | Yrd Mat Min Sub Scr Fac Total Allies 2 | . . 2 . . . Largest Group 2 | . . 2 1 . . Highest-Rated Group 48 | . . 48 21 . . Highest-Rated Ally 31 | . . 31 21 . . Initial UFD Resources 23 | . . . . . 23 Total Orders . | . . . . . . Ally Attacks 6 | . . 6 . . . Total Damage 83 | . . 83 . . . Kills . | . . . . . . Allies Corrupted . | . . . . . . Allies Melted . | . . . . . . Intel | -11 -10 -10 -10 -9 -6 ------- Run | Yrd Mat Min Sub Scr Fac Active Infowar (turns) 4326 | 71 906 744 567 1606 432 Optics 326 | . . . . 326 . Terrain 42 | 42 . . . . . Structural 1196 | . . 741 203 252 . Seismic 2781 | 48 906 3 364 1028 432 Robot Analysis Total . | . . . . . . Derelict Logs Recovered 5 | . . 2 1 2 . Drone Launches . | . . . . . . Drone Recoveries . | . . . . . . Exploration | -11 -10 -10 -10 -9 -6 ------------- Run | Yrd Mat Min Sub Scr Fac Turns Passed 9989 | 149 2127 1986 705 3507 1515 Spaces Moved 5638 | 70 997 1216 306 2177 872 Core 12 | 7 1 . . . 4 Treads 3805 | 63 996 1216 306 1219 5 Legs . | . . . . . . Wheels 1576 | . . . . 958 618 Hover 2 | . . . . . 2 Flight 243 | . . . . . 243 Fastest Speed 29 | 50 160 160 160 80 29 Average Speed 155 | 149 160 160 160 157 135 Slowest Speed 565 | 160 500 160 160 485 565 Overloaded Moves . | . . . . . . Propulsion Burnouts . | . . . . . . Robots Hopped 2 | . . . . . 2 Potential Cave-ins . | . . . . . . Cave-ins Triggered . | . . . . . . Exploration Rate (%) 57 | 5 99 97 27 93 21 Regions Visited 5 Branch Regions 3 Pre-discovered Areas 2 | . . 1 1 . . Known Exits Taken 2 | . 1 1 . . . Unknown Exits Taken 3 | 1 . . 1 1 . Scrap Searched 8 | . . 1 . 7 . Spaces Dug 18 | . . . . . 18 Terrain Destroyed 115 | . 40 . . . 75 Melee 18 | . . . . . 18 Projectile 1 | . . . . . 1 AOE 96 | . 40 . . . 56 Terrain Rammed . | . . . . . . Walls Destroyed . | . . . . . . Machines Disabled . | . . . . . . Actions | -11 -10 -10 -10 -9 -6 --------- Run | Yrd Mat Min Sub Scr Fac Total 6520 | 92 1403 1242 437 2272 1074 Wait 403 | . 296 6 57 1 43 Move 5629 | 69 996 1215 305 2176 868 Hop 2 | . . . . . 2 Pick Up 95 | 4 21 3 6 50 11 Fast Attach 55 | 7 9 1 2 10 26 Attach 30 | . . . 2 4 24 Detach 27 | 1 1 1 2 8 14 Swap 36 | . 7 2 18 3 6 Drop 38 | . 8 4 4 19 3 Fire 140 | 11 65 7 24 . 33 Melee 61 | . . . 17 . 44 Ram . | . . . . . . Kick . | . . . . . . Crush 3 | . . 3 . . . Escape Stasis . | . . . . . . Rewire 1 | . . . . 1 . Trap . | . . . . . . Miscellaneous . | . . . . . . Route ------- -11/Scrapyard -10/Materials (discovered 5 exits: *Mat x3 / *Min / *Sub) -10/Mines (discovered 3 exits: *Mat x2 / *Sub) -10/Subcaves -9/Scraptown (discovered 2 exits: *Fac x2) -6/Factory (discovered 2 exits: Low x2) History --------- Turn | Location | Event 11 | -11/Scrapyard | Discovered new exit (range 16) 150 | -11/Scrapyard | Entered Materials 308 | -10/Materials | Build established: Mutant 386 | -10/Materials | Destroyed 10 combat bots 394 | -10/Materials | Discovered new exit (range 15) 992 | -10/Materials | Discovered new exit (range 9) 1075 | -10/Materials | Identified exit to Materials 1279 | -10/Materials | Discovered exit to Materials (range 16) 1455 | -10/Materials | Discovered exit to Materials (range 16) 1939 | -10/Materials | Discovered new exit (range 11) 1958 | -10/Materials | Identified exit to Mines 2102 | -10/Materials | Repaired Lgt. Treads 2277 | -10/Materials | Entered Mines 2310 | -10/Mines | Learned 4 Materials zone layouts 2312 | -10/Mines | Learned 2 Materials zone layouts 2349 | -10/Mines | Discovered new exit (range 6) 2357 | -10/Mines | Identified exit to Subcaves 2781 | -10/Mines | Discovered exit to Materials (range 8) 2990 | -10/Mines | Discovered exit to Materials (range 10) 3348 | -10/Mines | Learned location of Storage (-9) 4263 | -10/Mines | Entered Subcaves 4263 | -10/Subcaves | Accompanied by 1 ally 4264 | -10/Subcaves | Approached by a straggling Scientist 4769 | -10/Subcaves | Shifting Twisted Machinery released Unknown Energy Gun 4783 | -10/Subcaves | Shifting Twisted Machinery released Flamer 4817 | -10/Subcaves | Shifting Twisted Machinery released Shrapnel Trap 4817 | -10/Subcaves | Shifting Twisted Machinery released Sub. Shrapnel Launcher 4925 | -10/Subcaves | Scientist uncovered a shortcut to Scraptown 4968 | -10/Subcaves | Entered Scraptown 5402 | -9/Scraptown | Heard Great Nut preacher, LISTEN AND RECITE! 5517 | -9/Scraptown | Visited Cave Peace 5578 | -9/Scraptown | Visited Assassins FH 5875 | -9/Scraptown | Discovered new exit (range 11) 5925 | -9/Scraptown | Scanned Subdweller tech in exchange for log data 5928 | -9/Scraptown | Learned Factory trap positions 5930 | -9/Scraptown | Learned Research stockpile data 5986 | -9/Scraptown | Visited SPCMW 6036 | -9/Scraptown | Visited The Evicted 6136 | -9/Scraptown | Visited Comm Corps 6244 | -9/Scraptown | Visited CR-KLE's Repair Center 6255 | -9/Scraptown | CR-KLE repaired 4 parts 6297 | -9/Scraptown | Visited Cyclists 6685 | -9/Scraptown | Visited UFD Registry 6685 | -9/Scraptown | Registered with UFD as "Hardmech" 6728 | -9/Scraptown | Visited Sword Containment 6745 | -9/Scraptown | Found Prototype Slashing Weapon 6745 | -9/Scraptown | Identified Companion Sword 6789 | -9/Scraptown | Visited Science Guys 6845 | -9/Scraptown | Visited Supply Room 7207 | -9/Scraptown | Visited Curators Association 7264 | -9/Scraptown | Visited Infowarlord's Domain 7270 | -9/Scraptown | Build established: Hauler-Mutant 7274 | -9/Scraptown | Found Exp. Signal Interpreter 7304 | -9/Scraptown | Visited Scrapoid Research Area 7369 | -9/Scraptown | Visited A0-MCA Data Center 7381 | -9/Scraptown | Given a D+ rating by A0-MCA 7385 | -9/Scraptown | Found A0-MCA's Component Scanner 7427 | -9/Scraptown | Visited DA-N13 Charitable Foundation 7435 | -9/Scraptown | Found DCF Scrap (29 items) 7531 | -9/Scraptown | Visited Chapter 10 7683 | -9/Scraptown | Entered Cyclist Reading Room 7898 | -9/Scraptown | Visited LU-1G1's Boring Crew 8025 | -9/Scraptown | Build established: Mutant 8371 | -9/Scraptown | Found Scrap Suit 8374 | -9/Scraptown | Found Scrap Suit 8387 | -9/Scraptown | Build established: Hauler-Mutant 8404 | -9/Scraptown | Found Scrap Suit 8446 | -9/Scraptown | Discovered new exit (range 5) 8475 | -9/Scraptown | Entered Factory 8475 | -6/Factory | Evolved 8 slots: Power x1, Propulsion x2, Utility x4, Weapon x1 8476 | -6/Factory | Loaded intel: 108 trap records 8772 | -6/Factory | Build established: Hauler-Tank 9113 | -6/Factory | Lost 5 parts (1n3u1w) 9186 | -6/Factory | Build established: Hauler-Mutant 9262 | -6/Factory | Lost 6 parts (2p2n1u1w) 9292 | -6/Factory | Garrison activated, responded to threat 9321 | -6/Factory | Lost 3 parts (2n1u) 9842 | -6/Factory | Cargo convoy interrupted 9845 | -6/Factory | Released all parts (9) 9853 | -6/Factory | Core integrity fell below 50% 9858 | -6/Factory | Found Prototype Device 9858 | -6/Factory | Identified Adv. EM Shield 9860 | -6/Factory | Core integrity fell below 20% 9910 | -6/Factory | System corruption reached 10% 9945 | -6/Factory | Identified exit to Lower Caves 9990 | -6/Factory | Destroyed by Y-54 Guardian with Flak Gun Last Messages --------------- Map updated. 09951_ Acquired Unknown Device. 09951_ Identified Energy Filter. 09954_ Acquired Seismic Detector. 09955_ System corrupted: Energy discharge (-1). 09958_ Connecting with Terminal... >>Enumerate(Investigations) Retrieving latest reported positions... No active investigation squads found. 09965_ Destroyed Imp. Heat Sink. 09966_ Diametric Drive destroyed. 09971_ P-60 Hacker destroyed. 09972_ Microactuators destroyed. 09973_ System corrupted: Component data lost. 09973_ P-60 Hacker destroyed. 09974_ Acquired 49 matter. 09977_ Acquired Target Analyzer. 09985_ Acquired Mic. Nuclear Core. 09987_ Energy Filter destroyed. 09990_ System corrupted: Heat flow error (+290). Map ----- +----------------------------------------------------+ | ????# #????????????????????????????????????? | | ????# ###########+###??????????????????????? | | ????# #??????????????????????? | | ????# #??????????????????????? | | ????# #??????????????????????? | | ##### #??????????????????????? | | # #??????????????????????? | | # ####+######+#+######??????????? #????? | | # #??# #?????????? ##???? | | # #??# ] "" #????????? #??? | | # #??# T" #???????? #??? | | # #??# "" #??????? +??? | | # #??# "" "" #?????? #??? | | + #??# ] "" "" ###### #??? | | # T#?# """ """ ! + #??? | | # #?# """ """ # #??? | | # ##?# """ """ # #??? | | # #??# + #??? | | ##### #??##+#########+######## #??? | | ???????# T # ######## #??? | | ??????# |# #??? | | ?????# # #??? | | ???# ! #= ??? | | ????# #=############## ??? | | ????# =[Y%#?????????????? ???? | | ??????# @#!#???????????????? ???? | | #######/#####????????# #!#????????????????????? | | ??????? ???????????# # #????????????????????? | | ??????? ? ??????????###### #????????????????????? | | ??????????????????????????# ????????????????????? | | ##???????????????????????? ????????????????????? | | #???????????????^???????? ????????????????????? | | #???????????????????????? ????????????????????? | | #???????????????????????? ????????????????????? | | #???????????????????????? ????????????????????? | | #?????????????^?????????? ????????????????????? | | #???????????????????????? ????????????????????? | | #?????????????^?????????? ??^?????????????????? | | #???????????????????????? ????????????????????? | | #?????????????^?????????? ????????????????????? | | #???????????????????????????????????????????????? | | ???????????????^?^???????????????????????????????? | | ??????????????????????????^??????????????????????? | | #########????????????????????????????????????????? | | ^ #????????????????????????????????????????? | | #######??????????????????????????????????? | | """^ # #????????^?????????????????????????? | | """ # "" #??????????????????????????????????? | | """ [ # "" #??????????????????????????????????? | | + T" #????????????^?????????????????????? | +----------------------------------------------------+ Best States ------------- Heat Dissipation 37 Energy Generation 25 Energy Capacity 475 Matter Stores 300 Matter Capacity 300 Sight Range 21 Terrain Scan Range 16 Terrain Scan Density 10 Armor Coverage 600 Resistance: KI 20 Resistance: EM 50 Utility Shielding 33 Melee Speed Boost 20 Evasion (%) 64 Targeting Accuracy 16 Target Analysis 5 Recoil Reduction 2 Energy Filtering 30 Offensive Hacking 10 Item Schematics ----------------- None Robot Schematics ------------------ S-10 Pest | -10/Materials | Hacked G-34 Mercenary | -10/Materials | Hacked W-16 Scout | -10/Materials | Hacked M-13 Machinist | -10/Materials | Hacked Fabricated ------------ Nothing Repaired ---------- Lgt. Treads | 4% | -10/Materials Studied --------- None Alien Tech Used ----------------- None Achievements -------------- Wiki Contributor Challenges ------------ None Game ------ Seed TimingPhasingMonowheel Manual? 0 Play Time 01:29:24 Cumulative 110.4 hours Start 2026.08.26 @ 11:06:50 End 2026.08.26 @ 13:53:04 Sessions 3 Manual Loads 0 Difficulty Rogue Special Mode None Game No. 70 Rogue 70 Adventurer 0 Explorer 0 Win Type - Total 0 Types 0/0/0/0/0/0/0/0/0/0 Lore% 42 Gallery% 43 Achievement% 33 Wizard Run 0 Options --------- Layout 0 ASCII 0 Keyboard 1 Movement Vi Keybinds 0 Fullscreen 2 Font 18/SmallcapsGlow Map View 76x50 Zoom Use 0% Tactical HUD 1 Map Filters NONE Filters NONE Steam 1 RUN: 5bc1afc7-8654-4cb2-b177-670f0422ffff